bitfinex-derivatives/quotes_BNBF0:USTF0_20241231
["timestamp","ask_amount","ask_price","bid_price","bid_amount"]
[1735627554452,0.28562859,700.21,699.07,1.06580113]
[1735627555155,0.28562859,700.21,699.03,1.06580113]
[1735627555856,0.28562859,700.21,699.04,0.28610666]
[1735627562062,1.49208935,700.42,699.04,0.28610666]
[1735627562960,1.06418333,700.74,699.04,0.28610666]
[1735627563162,1.49193476,700.48,699.04,0.28610666]
[1735627563364,1.06418333,700.74,699.04,0.28610666]
[1735627563663,1.49179619,700.62,699.04,0.28610666]
[1735627563961,1.06418333,700.8,699.04,0.28610666]
[1735627564162,0.26273105,700.79,699.04,0.28610666]
[1735627564361,0.28539627,700.78,699.04,0.28610666]
[1735627564560,0.28539627,700.78,699.07,1.06580113]
[1735627564561,0.26273105,700.77,699.07,1.06580113]
[1735627565057,1.49171093,700.76,699.07,1.06580113]
[1735627565262,0.26273105,700.75,699.07,1.06580113]
[1735627565763,0.26273105,700.75,699.04,0.28610666]
[1735627566062,0.26274371,700.74,699.04,0.28610666]
[1735627566263,0.54816034,700.73,699.04,0.28610666]
[1735627566464,0.26274371,700.72,699.04,0.28610666]
[1735627567163,0.28542478,700.71,699.04,0.28610666]
[1735627567365,0.26274371,700.7,699.04,0.28610666]
[1735627567665,0.28543293,700.69,699.04,0.28610666]
[1735627567866,0.26274371,700.68,699.04,0.28610666]
[1735627568263,0.28543293,700.69,699.04,0.28610666]
[1735627568465,0.26275158,700.68,699.04,0.28610666]
[1735627568768,0.28544107,700.67,699.04,0.28610666]
[1735627570864,0.26277697,700.66,699.04,0.28610666]
[1735627572267,0.28544922,700.65,699.04,0.28610666]
[1735627572770,0.26275247,700.64,699.04,0.28610666]
[1735627574972,0.28545737,700.63,699.04,0.28610666]
[1735627575377,1.49184416,700.62,699.04,0.28610666]
[1735627575877,0.28546552,700.61,699.04,0.28610666]
[1735627584082,0.28546552,700.61,699.15,1.06580113]
[1735627584781,0.28546552,700.61,699.17,1.06580113]
[1735627585879,0.28546552,700.61,699.25,1.06580113]
[1735627587385,0.28546552,700.61,699.29,1.06580113]
[1735627588386,0.28546552,700.61,699.3,1.06580113]
[1735627588785,0.28546552,700.61,699.31,0.28599619]
[1735627589980,1.06418333,700.86,699.31,0.28599619]
[1735627590683,1.49104516,700.91,699.31,0.28599619]
[1735627595288,1.06418333,701.33,699.31,0.28599619]
[1735627595488,1.49090143,701.12,699.31,0.28599619]
[1735627595680,1.06418333,701.33,699.31,0.28599619]
[1735627595883,1.49075241,701.11,699.31,0.28599619]
[1735627596088,1.06418333,701.44,699.32,1.06580113]
[1735627596290,0.54763727,701.43,699.32,1.06580113]
[1735627596481,0.26250547,701.42,699.32,1.06580113]
[1735627597090,0.26250547,701.42,699.31,0.28599619]
[1735627597292,0.2851318,701.43,699.31,0.28599619]
[1735627597590,1.49050765,701.41,699.31,0.28599619]
[1735627602689,0.26251037,701.4,699.31,0.28599619]
[1735627603892,0.54766605,701.39,699.31,0.28599619]
[1735627604094,0.26251799,701.38,699.31,0.28599619]
[1735627604393,0.28514806,701.39,699.31,0.28599619]
[1735627604594,0.26248655,701.38,699.31,0.28599619]
[1735627605093,0.28515619,701.37,699.31,0.28599619]
[1735627605294,0.26249457,701.36,699.31,0.28599619]
[1735627605792,0.28515619,701.37,699.31,0.28599619]
[1735627605991,0.28516432,701.35,699.31,0.28599619]
[1735627606192,0.26248133,701.34,699.31,0.28599619]
[1735627607594,1.49067791,701.33,699.31,0.28599619]
[1735627607791,0.26246027,701.32,699.31,0.28599619]
[1735627608496,0.26244489,701.31,699.31,0.28599619]
[1735627608695,0.26244489,701.3,699.31,0.28599619]
[1735627608895,1.49067791,701.33,699.31,0.28599619]
[1735627609191,0.26244696,701.32,699.31,0.28599619]
[1735627609696,1.49067791,701.33,699.31,0.28599619]
[1735627614400,0.28516432,701.35,699.31,0.28599619]
[1735627614601,1.4904119,701.32,699.31,0.28599619]
[1735627615497,1.4904119,701.32,699.31,1.35179732]
[1735627616399,0.26249252,701.31,699.31,1.35179732]
[1735627616800,0.26249252,701.31,699.31,0.28599619]
[1735627617897,0.26249252,701.31,699.32,1.06580113]
[1735627619206,0.26249252,701.31,699.41,1.06580113]
[1735627620205,0.26249252,701.31,699.5,1.06580113]
[1735627620406,1.4904119,701.32,699.5,1.06580113]
[1735627621502,1.4904119,701.32,699.62,1.06580113]
[1735627622308,1.4904119,701.32,699.52,1.06580113]
[1735627623309,1.4904119,701.32,699.31,0.28599619]
[1735627623310,1.4904119,701.32,699.58,1.06580113]
[1735627625312,1.4904119,701.32,699.59,1.06580113]
[1735627625705,1.4904119,701.32,699.61,0.28587355]
[1735627626614,0.28516432,701.35,699.61,0.28587355]
[1735627627318,0.28516432,701.35,699.83,1.06580113]
[1735627628408,0.28516432,701.35,699.65,2.50118496]
[1735627628409,0.28516432,701.35,699.95,1.06580113]
[1735627629311,0.28516432,701.35,699.87,1.06580113]
[1735627630217,0.28516432,701.35,699.9,1.06580113]
[1735627631616,0.28516432,701.35,699.89,1.06580113]
[1735627632517,0.28516432,701.35,699.86,1.06580113]
[1735627634919,0.28516432,701.35,699.88,0.28576327]
[1735627639922,0.28516432,701.35,699.88,1.3515644]
[1735627640826,0.28516432,701.35,699.94,1.06580113]
[1735627641726,0.28516432,701.35,699.97,1.06580113]
[1735627642621,0.28516432,701.35,699.88,0.28576327]
[1735627642622,0.28516432,701.35,700.02,1.06580113]
[1735627643925,0.28516432,701.35,699.91,1.06580113]
[1735627644727,0.28516432,701.35,699.92,0.28574694]
[1735627644928,0.28516432,701.35,699.96,1.06580113]
[1735627645122,0.28516432,701.35,699.97,0.28572653]
[1735627650829,0.28516432,701.35,699.99,1.06580113]
[1735627651334,0.28516432,701.35,700.0,0.28571428]
[1735627652237,0.28516432,701.35,700.02,1.06580113]
[1735627653639,0.28516432,701.35,700.0,0.28571428]
[1735627667649,0.26253231,701.34,700.0,0.28571428]
[1735627667846,0.28517245,701.33,700.0,0.28571428]
[1735627668044,0.26253231,701.32,700.0,0.28571428]
[1735627668248,0.28518059,701.31,700.0,0.28571428]
[1735627668549,1.77590107,701.31,700.0,0.28571428]
[1735627669450,0.26252917,701.3,700.0,0.28571428]
[1735627669648,0.26249213,701.29,700.0,0.28571428]
[1735627670350,0.28518465,701.3,700.0,0.28571428]
[1735627670546,0.26249751,701.29,700.0,0.28571428]
[1735627670745,0.28518465,701.3,700.0,0.28571428]
[1735627671249,0.26249719,701.29,700.0,0.28571428]
[1735627671551,0.28518465,701.3,700.0,0.28571428]
[1735627688462,1.06418333,701.28,700.0,0.28571428]
[1735627688765,0.28519685,701.27,700.0,0.28571428]
[1735627691365,0.26252893,701.26,700.0,0.28571428]
[1735627691666,1.06418333,701.21,700.0,0.28571428]
[1735627692465,1.49052361,701.2,700.0,0.28571428]
[1735627692664,0.28522939,701.19,700.0,0.28571428]
[1735627695368,1.06418333,701.18,700.0,0.28571428]
[1735627695568,0.26256412,701.17,700.0,0.28571428]
[1735627696263,0.26260159,701.16,699.74,1.06580113]
[1735627696468,0.26260159,701.15,699.74,1.06580113]
[1735627696768,1.06418333,701.11,699.67,1.06580113]
[1735627697370,1.06418333,701.11,699.68,0.28584495]
[1735627697566,1.06418333,701.18,699.68,0.28584495]
[1735627698570,0.28522939,701.19,699.68,0.28584495]
[1735627706577,0.26254619,701.18,699.68,0.28584495]
[1735627706877,0.28523753,701.17,699.68,0.28584495]
[1735627707077,0.28523753,701.17,699.69,1.06580113]
[1735627707376,0.28523753,701.17,699.7,0.28583678]
[1735627707977,0.28523753,701.17,699.73,1.06580113]
[1735627708976,0.28523753,701.17,699.81,1.06580113]
[1735627711275,0.28523753,701.17,699.73,1.24116279]
[1735627711276,0.28523753,701.17,699.84,1.06580113]
[1735627711983,0.28523753,701.17,699.83,1.06580113]
[1735627712673,0.28523753,701.17,699.84,0.2857796]
[1735627713080,0.28523753,701.17,699.86,1.06580113]
[1735627713878,0.28523753,701.17,699.87,0.28576735]
[1735627714081,0.28523753,701.17,699.87,1.35156848]
[1735627714277,0.26253911,701.16,699.87,1.35156848]
[1735627714474,0.28523753,701.17,699.87,1.35156848]
[1735627715581,0.28523753,701.17,699.87,0.28576735]
[1735627718676,2.55481335,701.16,699.87,0.28576735]
[1735627719087,0.26257732,701.15,699.87,0.28576735]
[1735627719485,1.06418333,701.14,699.87,0.28576735]
[1735627721487,1.49063002,701.16,699.87,0.28576735]
[1735627721786,0.2852538,701.13,699.87,0.28576735]
[1735627723382,1.06418333,701.11,699.87,0.28576735]
[1735627723587,0.28526601,701.1,699.87,0.28576735]
[1735627730689,0.26261669,701.09,699.87,0.28576735]
[1735627731286,1.06418333,701.05,699.87,0.28576735]
[1735627731887,0.2626114,701.04,699.87,0.28576735]
[1735627732092,1.06418333,701.05,699.4,1.06580113]
[1735627732294,1.06418333,701.06,699.41,0.2859553]
[1735627732594,0.28528635,701.05,699.41,0.2859553]
[1735627733988,0.28528635,701.05,699.45,1.06580113]
[1735627734393,0.28528635,701.05,699.46,0.28593486]
[1735627737396,0.26262532,701.04,699.46,0.28593486]
[1735627737593,0.28528635,701.05,699.46,0.28593486]
[1735627738400,0.26262824,701.04,699.46,0.28593486]
[1735627739104,0.28529449,701.03,699.46,0.28593486]
[1735627739295,0.26262824,701.02,699.46,0.28593486]
[1735627739700,0.28530263,701.01,699.46,0.28593486]
[1735627741209,0.2626061,701.0,699.46,0.28593486]
[1735627741405,0.28531077,700.99,699.46,0.28593486]
[1735627741606,1.77643047,700.99,699.46,0.28593486]
[1735627742008,1.77643047,700.99,699.5,1.06580113]
[1735627742210,0.26261269,700.98,699.5,1.06580113]
[1735627742404,0.26261591,700.97,699.5,1.06580113]
[1735627742708,1.77643047,700.99,699.5,1.06580113]
[1735627743101,1.77643047,700.99,699.51,0.28591442]
[1735627748008,1.77643047,700.99,699.51,1.35171555]
[1735627748806,1.77643047,700.99,699.56,1.06580113]
[1735627749210,1.77643047,700.99,699.57,0.2858899]
[1735627749810,1.77643047,700.99,699.62,1.06580113]
[1735627750110,1.77643047,700.99,699.63,0.28586538]
[1735627750912,1.77643047,700.99,699.64,1.06580113]
[1735627751110,1.77643047,700.99,699.65,0.28585721]
[1735627752014,1.77643047,700.99,699.81,1.06580113]
[1735627753016,1.77643047,700.99,699.82,1.06580113]
[1735627753617,1.77643047,700.99,699.77,1.06580113]
[1735627754818,1.77643047,700.99,699.65,0.28585721]
[1735627757816,1.77643047,700.99,699.71,1.06580113]
[1735627758923,1.77643047,700.99,699.69,1.06580113]
[1735627759821,1.77643047,700.99,699.67,1.06580113]
[1735627761019,1.77643047,700.99,699.65,0.28585721]
[1735627762122,1.77643047,700.99,699.69,1.06580113]
[1735627763124,1.77643047,700.99,699.65,0.28585721]
[1735627763822,0.28531484,700.98,699.65,0.28585721]
[1735627765315,1.06418333,700.94,699.65,0.28585721]
[1735627766120,0.28533519,700.93,699.65,0.28585721]
[1735627768426,1.06418333,700.92,699.65,0.28585721]
[1735627769017,1.49116229,700.91,699.65,0.28585721]
[1735627769722,0.28534741,700.9,699.65,0.28585721]
[1735627790547,0.28534741,700.9,699.69,1.06580113]
[1735627790743,0.28534741,700.9,699.7,0.28583678]
[1735627799747,1.7762861,700.9,699.7,0.28583678]
[1735627813666,0.28534741,700.9,699.7,0.28583678]
[1735627822266,0.26265353,700.89,699.7,0.28583678]
[1735627822770,0.26266316,700.88,699.7,0.28583678]
[1735627823072,0.26266316,700.87,699.7,0.28583678]
[1735627823273,0.26266316,700.86,699.7,0.28583678]
[1735627823573,0.26266316,700.85,699.7,0.28583678]
[1735627823776,0.26266316,700.84,699.7,0.28583678]
[1735627823974,1.49125814,700.84,699.7,0.28583678]
[1735627824375,0.26267761,700.83,699.7,0.28583678]
[1735627824574,1.49125814,700.84,699.7,0.28583678]
[1735627824773,0.26267974,700.83,699.7,0.28583678]
[1735627825874,1.49125814,700.84,699.7,0.28583678]
[1735627826067,0.262676,700.83,699.7,0.28583678]
[1735627826775,0.28537998,700.82,699.7,0.28583678]
[1735627828275,0.28537998,700.82,699.33,1.06580113]
[1735627828473,0.28537998,700.82,698.79,1.06580113]
[1735627829070,0.28537998,700.82,698.81,0.28620082]
[1735627829676,0.26274542,700.81,698.81,0.28620082]
[1735627830672,0.26274545,700.8,698.81,0.28620082]
[1735627830978,0.26274545,700.79,698.94,1.06580113]
[1735627831678,0.26274643,700.78,698.94,1.06580113]
[1735627831973,0.26274643,700.77,698.9,1.06580113]
[1735627832184,0.26274643,700.76,698.9,1.06580113]
[1735627832376,0.28537998,700.82,698.9,1.06580113]
[1735627832577,0.26270778,700.81,698.9,1.06580113]
[1735627832774,0.26270778,700.81,698.95,1.06580113]
[1735627833175,0.28537998,700.82,698.95,1.06580113]
[1735627833681,0.26270759,700.81,698.97,1.35193644]
[1735627833980,0.28537998,700.82,698.99,0.28612712]
[1735627834182,0.28538812,700.8,698.99,0.28612712]
[1735627834479,0.26271597,700.79,698.99,0.28612712]
[1735627834878,0.28539627,700.78,698.99,0.28612712]
[1735627836081,0.262726,700.77,698.99,0.28612712]
[1735627836380,0.28539627,700.78,698.99,0.28612712]
[1735627836580,0.26272474,700.77,698.99,0.28612712]
[1735627836781,1.49172692,700.76,698.99,0.28612712]
[1735627837282,0.28540849,700.75,698.99,0.28612712]
[1735627841584,0.28540849,700.75,699.01,1.06580113]
[1735627841782,0.28540849,700.75,699.03,0.28611075]
[1735627843880,0.28540849,700.75,699.24,1.06580113]
[1735627844083,0.28540849,700.75,699.25,0.28602073]
[1735627848096,0.28540849,700.75,699.27,1.06580113]
[1735627849196,0.28540849,700.75,699.29,1.06580113]
[1735627849397,1.4910984,700.94,699.29,1.06580113]
[1735627850396,1.4910984,700.94,699.25,0.28602073]
[1735627851996,1.4910984,700.94,699.25,1.35182186]
[1735627852894,1.4910984,700.94,699.31,1.06580113]
[1735627853893,1.4910984,700.94,699.38,1.06580113]
[1735627854098,1.06418333,701.38,699.38,1.06580113]
[1735627854297,0.26254255,701.37,699.38,1.06580113]
[1735627854498,1.49092272,701.02,699.38,1.06580113]
[1735627854697,1.06418333,701.38,699.38,1.06580113]
[1735627854892,1.49088014,701.01,699.38,1.06580113]
[1735627855095,1.06418333,701.38,699.38,1.06580113]
[1735627855397,0.2625494,701.37,699.37,1.06580113]
[1735627855591,0.2625494,701.36,699.37,1.06580113]
[1735627855791,0.2625494,701.35,699.37,1.06580113]
[1735627856097,0.28517245,701.33,699.37,1.06580113]
[1735627856297,0.2625494,701.32,699.32,1.06580113]
[1735627856797,0.26256626,701.31,699.32,1.06580113]
[1735627856998,0.26256626,701.3,699.32,1.06580113]
[1735627857199,0.26256626,701.29,699.34,0.28598392]
[1735627857399,0.28518872,701.29,699.34,0.28598392]
[1735627857596,0.26256233,701.28,699.35,1.06580113]
[1735627858100,0.26256233,701.28,699.37,0.28597166]
[1735627858295,0.28519685,701.27,699.37,0.28597166]
[1735627858494,0.26256233,701.26,699.37,1.35177279]
[1735627858695,0.28520499,701.25,699.37,1.35177279]
[1735627858900,0.26256233,701.24,699.37,1.35177279]
[1735627859098,0.28521312,701.23,699.37,1.35177279]
[1735627859298,0.26256233,701.22,699.37,1.35177279]
[1735627859504,0.28522126,701.21,699.37,0.28597166]
[1735627860700,0.2625733,701.2,699.37,0.28597166]
[1735627861100,0.28522126,701.21,699.37,0.28597166]
[1735627866609,1.49082159,701.2,699.37,0.28597166]
[1735627866804,0.28522939,701.19,699.37,0.28597166]
[1735627867999,0.26257388,701.18,699.37,0.28597166]
[1735627868805,0.28522939,701.19,699.37,0.28597166]
[1735627872610,0.26259476,701.18,699.37,0.28597166]
[1735627872810,0.28523753,701.17,699.37,0.28597166]
[1735627873512,0.26258214,701.16,699.37,0.28597166]
[1735627873713,0.28523753,701.17,699.37,0.28597166]
[1735627874214,0.26258661,701.16,699.37,0.28597166]
[1735627874415,0.28524566,701.15,699.37,0.28597166]
[1735627874613,0.26258661,701.14,699.37,0.28597166]
[1735627874813,0.2852538,701.13,699.37,0.28597166]
[1735627876915,1.49089611,701.12,699.37,0.28597166]
[1735627877117,0.28526194,701.11,699.37,0.28597166]
[1735627878013,0.28526194,701.11,699.43,1.06580113]
[1735627878211,0.28526194,701.11,699.45,0.28593895]
[1735627879319,1.34944527,701.11,699.54,1.06580113]
[1735627879519,1.34944527,701.11,699.55,0.28589807]
[1735627880319,1.06418333,701.1,699.55,0.28589807]
[1735627880513,0.28527007,701.09,699.55,0.28589807]
[1735627881320,1.06418333,701.04,699.55,0.28589807]
[1735627882216,1.06418333,701.02,699.55,0.28589807]
[1735627883214,1.06418333,701.0,699.55,0.28589807]
[1735627884120,1.06418333,701.0,699.55,1.3516992]
[1735627885020,1.06418333,700.98,699.55,0.28589807]
[1735627885919,1.06418333,700.99,699.55,0.28589807]
[1735627887216,1.49088546,700.98,699.55,0.28589807]
[1735627888413,1.06418333,701.04,699.57,1.06580113]
[1735627888620,1.49077902,701.03,699.57,1.06580113]
[1735627889621,1.49077902,701.03,699.83,1.06580113]
[1735627890418,1.49077902,701.03,699.66,1.06580113]
[1735627891316,1.49077902,701.03,699.68,1.06580113]
[1735627892418,1.49077902,701.03,699.69,0.28584087]
[1735627892623,1.49077902,701.03,699.69,1.351642]
[1735627893523,1.49077902,701.03,699.71,1.06580113]
[1735627894120,0.28527007,701.09,699.71,1.06580113]
[1735627894723,0.28527007,701.09,699.73,1.06580113]
[1735627895623,0.28527007,701.09,699.69,0.28584087]
[1735627895624,0.28527007,701.09,699.69,1.351642]
[1735627896525,0.28527007,701.09,699.69,0.28584087]
[1735627897524,1.06418333,701.08,699.69,0.28584087]
[1735627897823,0.26260755,701.07,699.69,0.28584087]
[1735627898628,1.06418333,701.01,699.69,0.28584087]
[1735627899628,0.28527007,701.09,699.69,0.28584087]
[1735627899629,1.06418333,700.97,699.69,0.28584087]
[1735627900427,0.28527007,701.09,699.69,0.28584087]
[1735627900428,1.06418333,700.99,699.69,0.28584087]
[1735627902131,1.06418333,700.95,699.69,0.28584087]
[1735627903030,1.06418333,700.96,699.69,0.28584087]
[1735627904028,0.26265256,700.95,699.69,0.28584087]
[1735627904229,1.06418333,700.93,699.69,0.28584087]
[1735627904626,1.75380984,700.92,699.69,0.28584087]
[1735627904930,0.26266352,700.91,699.69,0.28584087]
[1735627905125,1.49114632,700.92,699.69,0.28584087]
[1735627905324,1.06418333,700.86,699.69,0.28584087]
[1735627906332,1.49114632,700.92,699.69,0.28584087]
[1735627906333,1.06418333,700.9,699.69,0.28584087]
[1735627907533,1.49114632,700.92,699.69,0.28584087]
[1735627913243,0.28527007,701.09,699.69,0.28584087]
[1735627913539,1.49093869,701.01,699.69,0.28584087]
[1735627916147,0.28527007,701.09,699.69,0.28584087]
[1735627929461,0.26258337,701.08,699.69,0.28584087]
[1735627930761,1.06418333,701.07,699.69,0.28584087]
[1735627931959,1.06418333,701.08,699.69,0.28584087]
[1735627932857,0.28527007,701.09,699.69,0.28584087]
[1735627933661,0.26264031,701.08,699.69,0.28584087]
[1735627934161,1.32682364,701.08,699.69,0.28584087]
[1735627934357,0.26264031,701.07,699.69,0.28584087]
[1735627934558,1.06418333,701.08,699.69,0.28584087]
[1735627935156,0.28527007,701.09,699.69,0.28584087]
[1735627936259,0.26263113,701.08,699.69,0.28584087]
[1735627936561,0.28527821,701.07,699.69,0.28584087]
[1735627944164,0.26263405,701.06,699.69,0.28584087]
[1735627944574,0.28528635,701.05,699.69,0.28584087]
[1735627944768,0.26263405,701.04,699.69,0.28584087]
[1735627944965,0.28528635,701.05,699.69,0.28584087]
[1735627945171,1.06418333,700.89,699.69,0.28584087]
[1735627946372,1.06418333,701.03,699.69,0.28584087]
[1735627946567,1.34947782,701.03,699.69,0.28584087]
[1735627946766,0.28529856,701.02,699.69,0.28584087]
[1735627954974,0.28529856,701.02,699.71,1.06580113]
[1735627955274,0.28529856,701.02,699.72,0.28582861]
[1735627981701,1.06418333,701.46,699.72,0.28582861]
[1735627981900,1.49010876,701.47,699.72,0.28582861]
[1735627984607,1.49010876,701.47,699.72,1.35162974]
[1735627985808,1.49010876,701.47,699.72,0.28582861]
[1735627986708,1.49010876,701.47,699.87,1.06580113]
[1735627987006,0.26243698,701.46,699.87,1.06580113]
[1735627987599,0.26243698,701.46,699.72,0.28582861]
[1735627987600,0.26243698,701.46,699.97,1.06580113]
[1735627988605,0.26243698,701.46,699.94,1.06580113]
[1735627988908,1.49010876,701.47,699.94,1.06580113]
[1735627989906,1.49010876,701.47,699.74,2.42590181]
[1735627989907,1.49010876,701.47,699.87,1.06580113]
[1735627990503,1.49010876,701.47,699.89,0.28575919]
[1735628000324,1.49010876,701.47,699.89,1.35156032]
[1735628001328,1.49010876,701.47,699.95,1.06580113]
[1735628002328,1.49010876,701.47,699.93,1.06580113]
[1735628003330,1.49010876,701.47,699.89,0.28575919]
[1735628008529,1.49010876,701.47,699.9,1.06580113]
[1735628008730,1.49010876,701.47,699.92,0.28574694]
[1735628009830,1.49010876,701.47,699.96,1.06580113]
[1735628010030,1.49010876,701.47,699.97,0.28572653]
[1735628011227,1.49010876,701.47,700.0,1.06580113]
[1735628012132,1.49010876,701.47,700.02,0.28570612]
[1735628012325,1.49010876,701.47,700.07,1.06580113]
[1735628013628,1.49010876,701.47,700.17,1.06580113]
[1735628014633,1.06418333,701.42,700.16,1.06580113]
[1735628015631,1.06418333,701.39,700.22,1.06580113]
[1735628016433,1.06418333,701.4,700.22,1.06580113]
[1735628017535,1.06418333,701.4,700.17,1.06580113]
[1735628018136,1.48984295,701.39,700.17,1.06580113]
[1735628018539,1.48984295,701.39,700.02,0.28570612]
[1735628018540,1.48984295,701.39,700.1,1.06580113]
[1735628019335,1.48984295,701.39,700.02,0.28570612]
[1735628033552,1.06418333,701.36,700.02,0.28570612]
[1735628034751,1.06418333,701.33,700.02,0.28570612]
[1735628035756,1.06418333,701.31,700.02,0.28570612]
[1735628036455,1.49007154,701.3,700.02,0.28570612]
[1735628044158,1.06418333,701.34,700.02,0.28570612]
[1735628044556,1.49005027,701.38,700.02,0.28570612]
[1735628045054,1.06418333,701.42,700.02,0.28570612]
[1735628045660,1.48997053,701.46,700.1,1.06580113]
[1735628045961,1.48997053,701.46,700.11,0.28566939]
[1735628046866,2.55415386,701.46,700.11,0.28566939]
[1735628047667,1.48997053,701.46,700.11,1.35147052]
[1735628050160,1.48997053,701.46,700.11,0.28566939]
[1735628051467,2.55415386,701.46,700.11,1.35147052]
[1735628052370,1.06418333,701.42,700.15,1.06580113]
[1735628053175,1.06418333,701.42,700.11,0.28566939]
[1735628053176,1.48997053,701.46,700.11,0.28566939]
[1735628083896,1.06418333,701.7,700.11,0.28566939]
[1735628084197,1.48960912,701.65,700.11,0.28566939]
[1735628085194,1.48960912,701.65,700.11,1.35147052]
[1735628086995,1.48960912,701.65,700.13,1.06580113]
[1735628087189,1.48960912,701.65,700.15,0.28565307]
[1735628090297,0.28504646,701.64,700.15,0.28565307]
[1735628093105,0.28504646,701.64,700.15,1.3514542]
[1735628094106,0.28504646,701.64,700.26,1.06580113]
[1735628094301,0.28504646,701.64,700.27,0.28560412]
[1735628095203,0.28504646,701.64,700.28,1.06580113]
[1735628095710,0.26238121,701.63,700.28,1.06580113]
[1735628096009,1.06418333,701.59,700.27,0.28560412]
[1735628097207,1.06418333,701.61,700.27,0.28560412]
[1735628097408,1.34924198,701.61,700.27,0.28560412]
[1735628098210,1.06418333,701.58,700.27,0.28560412]
[1735628098808,1.48966226,701.57,700.27,0.28560412]
[1735628099715,2.55384559,701.57,700.27,0.28560412]
[1735628100515,1.48966226,701.57,700.27,0.28560412]
[1735628105820,0.28505865,701.61,700.27,0.28560412]
[1735628120638,1.06418333,701.58,700.27,0.28560412]
[1735628120840,1.34925417,701.58,700.27,0.28560412]
[1735628121234,1.48980043,701.57,700.27,0.28560412]
[1735628129847,0.28507896,701.56,700.27,0.28560412]
[1735628137855,0.2624353,701.55,700.27,0.28560412]
[1735628138055,0.28508709,701.54,700.27,0.28560412]
[1735628138252,0.26243484,701.53,700.27,0.28560412]
[1735628138448,0.28509522,701.52,700.27,0.28560412]
[1735628138649,0.26243484,701.51,700.27,0.28560412]
[1735628139551,1.06418333,701.43,699.95,1.06580113]
[1735628139753,0.28513586,701.42,699.95,1.06580113]
[1735628140055,0.26243484,701.41,699.95,1.06580113]
[1735628140254,1.75261273,701.41,699.95,1.06580113]
[1735628140555,0.54757883,701.4,699.95,1.06580113]
[1735628140757,1.34932732,701.4,699.91,1.06580113]
[1735628140958,0.26249065,701.39,699.91,1.06580113]
[1735628141256,0.28515212,701.38,699.91,1.06580113]
[1735628142057,0.28515212,701.38,699.73,1.06580113]
[1735628142250,0.28515212,701.38,699.74,0.28582044]
[1735628143955,0.28515212,701.38,699.75,1.06580113]
[1735628144150,0.28515212,701.38,699.76,0.28581227]
[1735628156971,0.26255608,701.37,699.76,0.28581227]
[1735628157867,1.06418333,701.29,699.76,0.28581227]
[1735628158466,1.49081627,701.28,699.76,0.28581227]
[1735628159670,0.28520092,701.26,699.76,0.28581227]
[1735628164166,0.26254904,701.25,699.76,0.28581227]
[1735628164673,0.28520905,701.24,699.76,0.28581227]
[1735628164868,0.26254904,701.23,699.76,0.28581227]
[1735628165465,0.28521719,701.22,699.76,0.28581227]
[1735628165668,0.26254904,701.21,699.76,0.28581227]
[1735628166573,0.28521719,701.22,699.76,0.28581227]
[1735628166574,0.26258356,701.2,699.76,0.28581227]
[1735628166768,0.26258356,701.19,699.76,0.28581227]
[1735628166974,0.26258356,701.18,699.76,0.28581227]
[1735628167174,0.28523753,701.17,699.76,0.28581227]
[1735628167374,0.26258356,701.16,699.76,0.28581227]
[1735628167874,0.28524566,701.15,699.76,0.28581227]
[1735628168169,0.26258356,701.14,699.76,0.28581227]
[1735628168376,0.2852538,701.13,699.76,0.28581227]
[1735628168669,0.26258356,701.12,699.76,0.28581227]
[1735628169069,0.2852538,701.13,699.76,0.28581227]
[1735628169481,0.2625762,701.12,699.76,0.28581227]
[1735628169975,0.2852538,701.13,699.76,0.28581227]
[1735628182283,0.26263159,701.12,699.76,0.28581227]
[1735628182584,0.28526601,701.1,699.76,0.28581227]
[1735628182776,0.26264457,701.09,699.76,0.28581227]
[1735628182976,0.28527821,701.07,699.76,0.28581227]
[1735628183180,0.26264457,701.06,699.76,0.28581227]
[1735628183379,0.28528635,701.05,699.76,0.28581227]
[1735628184976,0.26264305,701.04,699.76,0.28581227]
[1735628185180,0.28529449,701.03,699.76,0.28581227]
[1735628185377,0.26264305,701.02,699.76,0.28581227]
[1735628185683,0.28530263,701.01,699.76,0.28581227]
[1735628185884,0.26264305,701.0,699.76,0.28581227]
[1735628186082,0.28531077,700.99,699.76,0.28581227]
[1735628186285,0.26264244,700.98,699.76,0.28581227]
[1735628186486,0.28531891,700.97,699.76,0.28581227]
[1735628187285,0.26263915,700.96,699.76,0.28581227]
[1735628187486,0.28532705,700.95,699.76,0.28581227]
[1735628187681,0.26263915,700.94,699.76,0.28581227]
[1735628187985,0.28533519,700.93,699.76,0.28581227]
[1735628198691,1.49105581,700.92,699.76,0.28581227]
[1735628200885,0.2626623,700.91,699.76,0.28581227]
[1735628201084,1.06418333,700.9,699.76,0.28581227]
[1735628201285,0.2626623,700.89,699.76,0.28581227]
[1735628202290,1.06418333,700.82,699.76,0.28581227]
[1735628202990,0.2627081,700.81,699.76,0.28581227]
[1735628203186,1.06418333,700.82,699.76,0.28581227]
[1735628203790,0.26270227,700.81,699.76,0.28581227]
[1735628204187,1.06418333,700.82,699.76,0.28581227]
[1735628204385,1.06418333,700.82,699.21,1.06580113]
[1735628204386,0.26270058,700.81,699.21,1.06580113]
[1735628204587,0.26270058,700.81,699.22,0.286033]
[1735628204785,1.06418333,700.82,699.22,0.286033]
[1735628205091,1.06418333,700.83,699.22,0.286033]